bitfinex/quotes_ETHUSD_20250106
["timestamp","ask_amount","ask_price","bid_price","bid_amount"]
[1736158402452,0.753,3640.6,3639.8,2.74739]
[1736158402646,0.753,3640.6,3639.6,0.3668]
[1736158402647,0.753,3640.6,3640.0,35.0]
[1736158403430,0.753,3640.6,3640.1,2.71757592]
[1736158403765,0.753,3640.6,3640.1,5.46472592]
[1736158404172,0.753,3640.6,3640.1,2.74715]
[1736158405067,0.753,3640.6,3640.2,2.74708]
[1736158407261,0.7515,3641.1,3640.3,37.747]
[1736158407927,0.7515,3641.1,3640.3,35.0]
[1736158408128,0.7515,3641.1,3640.4,2.74692]
[1736158408562,0.7515,3641.1,3640.6,2.74679]
[1736158408864,0.7515,3641.1,3640.4,2.71757592]
[1736158409070,0.7515,3641.1,3640.7,2.74667]
[1736158409955,0.7515,3641.1,3640.8,2.74661]
[1736158410155,0.7515,3641.1,3640.4,5.46447592]
[1736158410358,0.7515,3641.1,3640.7,2.74672]
[1736158411242,0.7515,3641.1,3640.5,0.87112747]
[1736158411450,0.7515,3641.1,3640.6,2.74677]
[1736158414889,0.7515,3641.1,3640.7,35.0]
[1736158416469,0.7515,3641.1,3640.7,37.7467]
[1736158416683,0.7515,3641.1,3640.7,40.46427592]
[1736158419898,0.7515,3641.1,3640.7,5.46427592]
[1736158420057,0.7515,3641.1,3640.7,2.7467]
[1736158420402,0.7515,3641.1,3640.8,35.0]
[1736158429622,0.7515,3641.1,3640.6,2.74677]
[1736158430183,0.7515,3641.1,3640.7,35.0]
[1736158432027,1.14741183,3641.3,3640.7,35.0]
[1736158432250,1.14741183,3641.3,3640.8,3.11183986]
[1736158432413,1.14741183,3641.3,3641.2,2.74634]
[1736158433382,0.95007242,3641.7,3641.2,2.74634]
[1736158433776,0.95007242,3641.7,3641.3,2.74625]
[1736158434579,0.794,3641.8,3641.3,2.74625]
[1736158434995,0.794,3641.8,3640.9,2.74653]
[1736158435190,0.794,3641.8,3641.1,2.74639]
[1736158436824,0.94980387,3641.7,3641.1,2.74639]
[1736158437118,0.94980387,3641.7,3641.2,2.74634]
[1736158438322,1.14741183,3641.9,3641.4,0.3668]
[1736158438492,1.14741183,3641.9,3641.5,2.74605]
[1736158438885,1.14741183,3641.9,3641.7,2.74595]
[1736158439078,1.14741183,3641.9,3641.8,35.0]
[1736158439506,3.52166701,3642.0,3641.8,35.0]
[1736158441115,0.8189,3642.1,3641.8,35.0]
[1736158446720,0.8189,3642.1,3641.6,2.74601]
[1736158447278,0.8189,3642.1,3641.7,35.0]
[1736158448821,0.8189,3642.1,3641.7,37.74596]
[1736158449188,0.8189,3642.1,3641.7,40.15225092]
[1736158449890,1.92781183,3642.4,3641.7,40.15225092]
[1736158450091,1.14741183,3642.3,3641.8,2.74586]
[1736158450287,1.14741183,3642.3,3641.7,37.40629092]
[1736158450288,1.14741183,3642.3,3641.9,2.74578]
[1736158451013,1.14741183,3642.3,3641.7,40.15223092]
[1736158451443,1.19512091,3642.0,3641.7,35.0]
[1736158451609,0.7639,3641.9,3641.2,2.74627]
[1736158452007,0.7639,3641.9,3641.3,35.0]
[1736158452430,1.19512091,3641.8,3641.3,35.0]
[1736158452704,0.8122,3641.7,3641.3,35.0]
[1736158457873,0.8122,3641.7,3641.1,2.74639]
[1736158458369,0.8122,3641.7,3641.2,35.0]
[1736158462584,0.8122,3641.7,3640.6,3.30501709]
[1736158462585,2.37397053,3641.6,3640.6,3.30501709]
[1736158462759,2.37397053,3641.6,3641.0,2.74648]
[1736158463146,2.37397053,3641.6,3641.1,35.0]
[1736158466605,3.52138236,3641.6,3641.1,35.0]
[1736158467507,2.37397053,3641.6,3641.1,35.0]
[1736158468607,2.37397053,3641.6,3641.1,37.74639]
[1736158469695,0.94958821,3641.6,3641.1,37.74639]
[1736158470604,1.95961183,3641.7,3641.1,37.74639]
[1736158470766,1.95961183,3641.7,3641.1,35.0]
[1736158471394,0.8056,3641.6,3641.1,35.0]
[1736158471792,4.32709792,3641.6,3641.1,35.0]
[1736158473294,3.52149792,3641.5,3641.1,35.0]
[1736158474017,3.52149792,3641.5,3641.1,37.71757592]
[1736158474424,0.94958821,3641.4,3641.1,37.71757592]
[1736158475620,0.94628208,3641.5,3641.3,2.7462]
[1736158476009,0.94628208,3641.5,3641.4,2.74619]
[1736158477126,0.757,3641.5,3641.1,40.46391592]
[1736158478183,0.757,3641.5,3641.1,35.0]
[1736158479128,1.90441183,3641.5,3641.1,35.0]
[1736158480233,1.90441183,3641.5,3641.1,37.7464]
[1736158480392,1.90441183,3641.5,3641.1,35.0]
[1736158480725,0.757,3641.5,3641.1,35.0]
[1736158481633,1.90441183,3641.5,3641.1,35.0]
[1736158483195,1.90441183,3641.5,3641.1,37.71757592]
[1736158484034,1.90441183,3641.5,3641.1,35.0]
[1736158484358,0.757,3641.5,3641.1,35.0]
[1736158490820,1.90441183,3641.5,3641.1,35.0]
[1736158493344,1.14741183,3641.3,3641.1,35.0]
[1736158494447,1.42588999,3641.2,3641.1,35.0]
[1736158497360,3.52437082,3641.2,3641.1,35.0]
[1736158500360,3.52437082,3641.2,3641.1,37.71757592]
[1736158500658,3.52437082,3641.2,3641.1,40.83079592]
[1736158502061,1.14741183,3641.6,3641.1,40.83079592]
[1736158502229,1.14741183,3641.6,3641.2,2.74632]
[1736158502761,1.14741183,3641.6,3641.1,38.08437592]
[1736158502920,1.14741183,3641.6,3641.3,2.74622]
[1736158503366,3.526568,3641.5,3641.3,2.74622]
[1736158504683,1.14741183,3641.6,3641.3,2.74622]
[1736158505178,1.14741183,3641.6,3641.5,2.74612]
[1736158505383,1.14741183,3641.6,3641.5,3.59418485]
[1736158506845,1.14741183,3641.6,3641.5,38.59418485]
[1736158507708,0.7809,3641.9,3641.5,38.22738485]
[1736158508844,2.57503629,3642.0,3641.5,38.22738485]
[1736158509163,2.48833015,3642.2,3641.6,2.60311107]
[1736158509164,0.95147587,3641.8,3641.6,2.60311107]
[1736158509897,0.95147587,3641.8,3641.6,5.34913107]
[1736158510820,1.14741183,3642.0,3641.6,5.34913107]
[1736158510949,1.14741183,3642.0,3641.6,0.3668]
[1736158511150,1.14741183,3642.0,3641.7,2.74596]
[1736158511370,1.14741183,3642.0,3641.8,35.0]
[1736158511973,2.57419665,3642.1,3641.8,35.0]
[1736158513384,0.95112376,3642.0,3641.8,35.0]
[1736158513588,0.95112376,3642.0,3641.8,37.71757592]
[1736158518492,0.95112376,3642.1,3641.9,2.74581]
[1736158520221,0.95112376,3642.1,3641.8,35.0]
[1736158520513,0.8034,3642.0,3641.1,3.89839518]
[1736158520685,0.7694,3641.8,3641.1,3.89839518]
[1736158520876,0.7694,3641.8,3641.2,35.0]
[1736158522880,3.52459536,3641.7,3641.2,35.0]
[1736158523219,0.7905,3641.6,3641.2,35.0]
[1736158524997,0.7905,3641.6,3641.2,37.74634]
[1736158525197,1.14741183,3641.8,3641.3,2.74626]
[1736158525597,1.14741183,3641.8,3641.4,2.74613]
[1736158526118,1.14741183,3641.8,3641.2,40.46388592]
[1736158526321,0.95074586,3641.8,3641.2,40.46388592]
[1736158526729,0.95074586,3641.8,3641.2,37.74631]
[1736158527025,0.7632,3641.7,3641.2,35.0]
[1736158527398,3.14009201,3641.7,3641.2,35.0]
[1736158528520,2.37689201,3641.6,3641.2,35.0]
[1736158530631,0.95074586,3641.5,3641.2,35.0]
[1736158535650,1.94620106,3641.3,3640.6,2.74679]
[1736158535852,1.19540106,3641.1,3640.5,1.15200518]
[1736158535993,0.7508,3641.0,3640.5,1.15200518]
[1736158536191,0.7508,3641.0,3640.7,35.0]
[1736158537821,1.14741183,3641.1,3640.7,35.3668]
[1736158538018,1.14741183,3641.1,3640.7,38.08437592]
[1736158538250,1.14741183,3641.1,3640.7,40.83103592]
[1736158538526,1.14741183,3641.2,3640.7,40.83103592]
[1736158538728,1.14741183,3641.2,3640.7,35.3668]
[1736158538931,1.14741183,3641.2,3640.8,2.74664]
[1736158539853,0.95100372,3641.3,3640.8,2.74664]
[1736158540356,0.95100372,3641.3,3640.7,35.0]
[1736158540661,0.8231,3641.2,3640.7,37.74672]
[1736158541779,0.8231,3641.2,3640.7,37.71757592]
[1736158541981,0.8231,3641.2,3640.9,2.74651]
[1736158545381,0.8231,3641.2,3641.0,35.0]
[1736158547162,1.95091183,3641.5,3641.1,2.74642]
[1736158547465,1.14741183,3641.5,3641.3,2.74625]
[1736158547692,1.14741183,3641.5,3641.4,0.27737127]
[1736158547901,1.14741183,3641.5,3641.4,35.0]
[1736158548098,1.14741183,3641.6,3641.4,35.0]
[1736158549073,0.7855,3641.5,3640.9,2.74653]
[1736158549596,0.7855,3641.5,3641.0,35.0]
[1736158549798,0.7855,3641.5,3641.0,37.74649]
[1736158552477,1.14741183,3641.6,3641.1,0.02746112]
[1736158552739,1.14741183,3641.6,3641.5,2.74612]
[1736158554257,0.8065,3641.8,3641.5,2.74612]
[1736158555867,0.8065,3641.8,3641.3,2.74625]
[1736158556333,0.8065,3641.8,3641.6,35.0]
[1736158559565,1.14741183,3641.9,3641.6,37.71757592]
[1736158559738,1.14741183,3641.9,3641.6,40.36719158]
[1736158559944,1.14741183,3641.9,3641.8,2.74589]
[1736158561346,1.14741183,3641.9,3641.8,3.11269]
[1736158561575,0.95161956,3642.3,3642.2,2.74559]
[1736158561762,0.95161956,3642.3,3642.2,3.020149]
[1736158561961,0.95161956,3642.3,3642.2,38.020149]
[1736158562689,2.09903139,3642.7,3642.2,35.274559]
[1736158562990,2.09903139,3642.7,3642.3,2.74549]
[1736158563490,2.7859349,3642.7,3642.2,35.0]
[1736158563863,0.7888,3642.6,3641.5,1.51880518]
[1736158564070,0.7888,3642.6,3641.7,2.74591]
[1736158564390,0.7888,3642.6,3641.8,35.0]
[1736158564553,0.7888,3642.6,3641.8,37.74588]
[1736158565481,3.52617997,3642.5,3641.8,37.74588]
[1736158565685,0.7887,3642.4,3641.8,37.74588]
[1736158567690,0.7887,3642.4,3641.8,2.74588]
[1736158568172,0.7887,3642.4,3641.9,35.0]
[1736158568991,0.7887,3642.4,3641.9,37.74581]
[1736158569887,0.7887,3642.4,3642.0,2.7457]
[1736158571288,0.7887,3642.4,3641.9,35.0]
[1736158572988,0.94982562,3642.3,3641.9,35.0]
[1736158573207,0.7986,3642.2,3641.9,35.0]
[1736158575429,0.8282,3642.1,3641.1,2.74641]
[1736158575634,0.8282,3641.9,3640.9,2.7465]
[1736158575918,0.8282,3641.9,3641.2,35.0]
[1736158576528,0.8282,3641.9,3641.2,37.74632]
[1736158577392,0.94968736,3641.8,3641.2,37.74632]
[1736158578534,0.94968736,3641.8,3641.5,2.74609]
[1736158578707,0.94968736,3641.8,3641.7,2.74597]
[1736158578904,1.97511183,3642.1,3641.7,2.74597]
[1736158579299,1.97511183,3642.1,3641.8,35.0]
[1736158580204,0.8277,3642.1,3641.8,35.0]
[1736158582547,0.8277,3642.1,3641.8,35.0]
[1736158583346,0.8277,3642.1,3641.6,2.74604]
[1736158583783,0.8277,3642.1,3641.7,35.0]
[1736158584239,0.8277,3642.1,3641.6,2.74604]
[1736158585630,0.8277,3642.1,3641.4,2.74615]
[1736158585837,0.8277,3642.1,3641.4,2.71757592]
[1736158586033,0.8277,3642.1,3641.5,2.74607]
[1736158586262,0.8277,3642.1,3641.6,35.0]
[1736158586753,0.8277,3642.1,3641.7,2.74596]
[1736158587622,0.8277,3642.1,3641.6,35.0]
[1736158587827,1.14741183,3642.2,3641.7,3.08437592]
[1736158588075,1.14741183,3642.2,3641.9,2.74581]
[1736158588239,1.14741183,3642.3,3641.9,2.74581]
[1736158588566,1.14741183,3642.3,3641.7,3.08437592]
[1736158588567,1.14741183,3642.3,3642.2,2.74559]
[1736158589651,1.14741183,3642.5,3642.2,2.74559]
[1736158590708,0.95070696,3642.6,3642.2,2.74559]
[1736158591358,0.95070696,3642.6,3642.3,37.74544]
[1736158591558,0.95070696,3642.6,3642.5,2.74536]
[1736158592992,0.95070696,3642.6,3642.4,0.3668]
[1736158593206,0.95070696,3642.6,3642.3,37.7455]
[1736158593760,0.95070696,3642.9,3642.3,35.0]
[1736158593956,0.95070696,3642.9,3642.4,2.74543]
[1736158595377,0.95070696,3642.8,3642.4,2.74543]
[1736158595904,0.95070696,3642.8,3642.3,35.0]
[1736158597074,0.798,3642.7,3642.3,35.0]
[1736158600246,0.798,3642.7,3642.1,2.74565]
[1736158600652,0.798,3642.7,3642.2,35.0]
[1736158604269,0.95087806,3642.6,3642.2,35.0]
[1736158607874,0.7658,3642.5,3642.2,35.0]
[1736158609168,2.37747603,3642.4,3642.2,35.0]
[1736158618912,2.37747603,3642.4,3642.2,35.0]
[1736158619567,0.95087806,3642.4,3642.2,35.0]
[1736158623109,0.95087806,3642.4,3641.9,2.74578]
[1736158623409,1.54999986,3642.4,3641.9,2.74578]
[1736158623912,0.95087806,3642.3,3641.9,2.74578]
[1736158624508,0.94757274,3642.3,3641.9,2.74578]
[1736158625127,1.14741183,3642.4,3641.9,2.74578]
[1736158626222,1.42757622,3642.3,3641.9,2.74578]
[1736158627021,1.42757622,3642.3,3642.0,35.0]
[1736158628024,1.14741183,3642.3,3642.0,35.0]
[1736158629126,1.14741183,3642.3,3642.0,36.1948803]
[1736158632529,1.42753903,3642.2,3642.0,36.1948803]
[1736158634330,1.14741183,3642.3,3642.0,36.1948803]
[1736158636719,1.4278851,3642.2,3642.0,36.1948803]
[1736158637632,1.14741183,3642.3,3642.0,36.1948803]
[1736158640147,1.42756743,3642.2,3642.0,36.1948803]
[1736158641835,1.14741183,3642.2,3642.0,36.1948803]
[1736158644695,1.14741183,3642.2,3642.0,38.9405903]
[1736158645238,0.95161089,3642.1,3642.0,38.9405903]
[1736158649039,2.37919795,3642.1,3642.0,38.9405903]
[1736158650914,2.37919795,3642.1,3642.0,36.1948803]
[1736158651114,2.37919795,3642.1,3642.0,35.0]
[1736158651315,0.7716,3642.0,3641.7,1.15200518]
[1736158652623,0.7716,3642.0,3641.8,35.0]
[1736158653245,4.28263292,3641.9,3641.8,35.0]
[1736158655842,4.1047102,3641.9,3641.8,35.0]
[1736158658065,4.1047102,3641.9,3641.4,1.1948803]
[1736158658269,0.96696282,3641.8,3641.4,1.1948803]
[1736158658918,0.96696282,3641.8,3641.5,35.0]
[1736158659321,1.72551225,3641.9,3641.5,35.0]
[1736158659816,3.52624543,3641.7,3641.5,35.0]
[1736158660177,3.52624543,3641.7,3641.6,1.1948803]
[1736158661075,2.37657805,3641.7,3641.6,1.1948803]
[1736158662379,2.37657805,3641.7,3641.5,35.0]
[1736158663788,0.95063122,3641.7,3641.5,35.0]
[1736158665534,1.14966738,3641.8,3641.5,35.0]
[1736158666174,1.63794254,3641.8,3641.5,35.0]
[1736158666381,1.43890638,3641.8,3641.5,35.0]
[1736158667607,1.43890638,3641.8,3641.3,1.1948803]
[1736158667770,0.48827516,3641.8,3641.3,1.1948803]
[1736158668093,0.48827516,3641.8,3641.2,2.74634]
[1736158668094,1.26366738,3641.9,3641.5,1.1948803]
[1736158669198,1.42466113,3641.8,3641.5,1.1948803]
[1736158670303,0.94974731,3641.8,3641.5,1.1948803]
[1736158671657,2.21341469,3641.9,3641.6,35.0]
[1736158674005,0.94974731,3641.8,3641.6,35.0]
[1736158674166,1.69537,3641.8,3641.6,35.0]
[1736158674889,0.74562269,3641.8,3641.3,1.1948803]
[1736158675500,0.74562269,3641.8,3641.4,35.0]
[1736158676801,2.68809488,3641.9,3641.5,1.1948803]
[1736158677107,2.68809488,3641.9,3641.7,1.1948803]
[1736158677402,1.26366738,3641.9,3641.8,35.0]
[1736158679008,2.21325384,3641.9,3641.8,35.0]
[1736158680295,3.63763353,3641.9,3641.8,35.0]
[1736158685317,3.63763353,3641.9,3641.3,2.74623]
[1736158685722,3.63763353,3641.9,3641.4,35.0]
[1736158686209,2.48796615,3641.9,3641.4,35.0]
[1736158687490,2.09823792,3641.8,3641.4,35.0]
[1736158688826,0.94958646,3641.7,3641.4,35.0]
[1736158689619,0.94958646,3641.7,3641.4,37.74616]
[1736158689929,0.94958646,3641.7,3641.6,4.3077203]
[1736158691729,2.09823792,3642.2,3641.7,2.74594]
[1736158692108,2.09823792,3642.2,3641.6,1.5616803]
[1736158692308,1.93215146,3642.1,3641.4,36.1948803]
[1736158694048,1.14865146,3641.9,3641.4,36.1948803]
[1736158694430,1.14865146,3641.9,3641.4,35.0]
[1736158695442,4.31671711,3641.8,3641.4,35.0]
[1736158695611,0.87880994,3641.7,3641.4,35.0]
[1736158696837,0.8025,3641.4,3641.0,1.15200518]
[1736158697157,0.113,3641.3,3640.6,1.15200518]
[1736158697454,0.113,3641.3,3640.7,35.0]
[1736158698330,1.14991314,3641.1,3640.7,35.0]
[1736158699554,0.95038626,3641.0,3640.7,35.0]
[1736158701017,1.42560902,3641.0,3640.7,35.0]
[1736158701978,0.7747,3640.9,3640.7,35.0]
[1736158702454,1.10972222,3640.9,3640.7,35.0]
[1736158702619,1.52990252,3640.9,3640.1,1.15200518]
[1736158702820,0.7517,3640.8,3640.1,1.15200518]
[1736158703133,0.7517,3640.8,3640.2,35.0]
[1736158703789,6.27199827,3640.8,3640.2,35.0]
[1736158703931,1.7847413,3640.7,3640.2,35.0]
[1736158704372,2.9796216,3640.7,3640.2,35.0]
[1736158704574,0.832,3640.6,3640.2,35.0]
[1736158705389,1.1948803,3640.5,3640.2,35.0]
[1736158705590,0.8299,3640.4,3640.2,35.0]
[1736158705892,0.57214064,3640.3,3640.2,35.0]
[1736158707644,0.8299,3640.4,3640.2,35.0]
[1736158710881,0.8299,3640.4,3639.7,2.74746]
[1736158711277,0.8299,3640.4,3639.8,35.0]
[1736158713553,0.8299,3640.4,3639.8,37.74739]
[1736158715267,0.114,3640.3,3639.9,3.11412]
[1736158717607,0.8299,3640.4,3639.9,3.11412]
[1736158717903,1.14991314,3640.9,3640.1,2.6511628]
[1736158718066,1.14991314,3640.9,3640.6,2.74673]
[1736158718798,1.14991314,3640.9,3640.7,35.0]
[1736158719207,0.114,3641.2,3640.7,35.0]
[1736158719395,0.76821554,3641.2,3640.7,35.0]
[1736158721770,0.114,3641.2,3640.7,35.0]
[1736158724640,0.114,3641.2,3640.3,2.74699]
[1736158725142,2.86036,3641.2,3640.4,35.0]
[1736158729326,2.86036,3641.2,3640.2,4.30988287]
[1736158729524,0.94639661,3641.1,3640.2,4.30988287]
[1736158729716,0.94639661,3641.1,3640.3,35.0]
[1736158730227,0.7674,3641.0,3640.2,4.30988287]
[1736158734059,0.7674,3641.0,3640.3,35.0]
[1736158736441,0.7674,3641.0,3640.3,37.74702]
[1736158738070,0.94770856,3640.9,3640.3,37.74702]
[1736158738662,0.94770856,3640.9,3640.3,35.0]
[1736158738868,0.8293,3640.7,3640.3,35.0]
[1736158740257,0.7594,3640.4,3639.5,0.3668]
[1736158740451,1.19599287,3640.3,3639.6,0.55961163]
[1736158740670,0.7594,3640.4,3639.7,35.0]
[1736158741459,1.14991314,3640.4,3639.7,35.0]
[1736158741662,0.7787,3640.3,3639.7,35.0]
[1736158741888,0.46755631,3640.2,3639.7,35.0]
[1736158742551,3.98980523,3640.2,3639.7,35.0]
[1736158743385,3.52224892,3640.2,3639.7,35.0]
[1736158744260,2.37233578,3640.1,3639.7,35.0]
[1736158745286,3.52224892,3640.1,3639.7,35.0]
[1736158746596,0.764,3640.0,3639.7,35.0]
[1736158747469,0.764,3640.0,3639.3,2.74775]
[1736158747671,0.113,3639.9,3639.3,2.74775]
[1736158748297,0.113,3639.9,3639.2,0.3668]
[1736158748508,3.63576351,3639.9,3639.7,35.0]
[1736158749711,0.94893431,3639.8,3639.7,35.0]
[1736158750580,2.21184745,3639.9,3639.7,35.0]
[1736158750984,2.09884745,3639.9,3639.8,0.3668]
[1736158751511,2.09884745,3639.9,3639.7,40.46500592]
[1736158752021,2.09884745,3639.9,3639.7,37.74743]
[1736158752226,1.14991314,3640.2,3639.7,37.74743]
[1736158753623,2.09891866,3640.3,3639.7,37.74743]
[1736158753989,2.09891866,3640.3,3639.8,2.74733]
[1736158754189,2.09891866,3640.3,3640.1,2.74712]
[1736158754406,2.09891866,3640.3,3640.1,0.274712]
[1736158754717,2.09891866,3640.3,3640.2,3.1139]
[1736158756136,0.113,3640.7,3640.2,3.1139]
[1736158758428,0.113,3640.7,3640.3,35.0]
[1736158758588,0.94924961,3640.6,3640.3,35.0]
[1736158761328,0.113,3640.7,3640.3,35.0]
[1736158764133,1.14991314,3640.8,3640.3,37.74702]
[1736158765826,2.09904171,3640.8,3640.3,37.74702]
[1736158767049,1.42367991,3640.7,3640.3,37.74702]
[1736158768769,2.09904171,3640.8,3640.3,37.74702]
[1736158769565,2.09904171,3640.8,3640.3,35.0]
[1736158769738,1.14991314,3640.8,3640.3,35.0]
[1736158770765,1.59655137,3640.8,3640.3,35.0]
[1736158771164,2.37254702,3640.7,3640.3,35.0]
[1736158771541,0.8108,3640.6,3640.3,35.0]
[1736158772361,0.8108,3640.6,3639.9,2.74732]
[1736158772731,0.8108,3640.6,3640.0,35.0]
[1736158772934,0.8108,3640.6,3640.0,37.74722]
[1736158773132,0.8108,3640.6,3640.1,0.3668]
[1736158773331,0.80749314,3640.6,3640.1,3.11396]
[1736158773547,2.09904171,3640.7,3640.2,2.7471]
[1736158773868,2.37259706,3640.5,3640.4,2.74695]
[1736158774657,2.37259706,3640.5,3640.4,3.11705]
[1736158774860,2.37259706,3640.5,3640.4,3.97522559]
[1736158775069,2.37259706,3640.5,3640.4,5.17101373]
[1736158775375,0.94912857,3640.7,3640.4,40.17101373]
[1736158775749,0.94912857,3640.7,3640.6,2.74679]
[1736158776873,2.09904171,3640.9,3640.6,2.74679]
[1736158777177,2.09904171,3640.9,3640.8,3.11674]
[1736158777995,2.09904171,3640.9,3640.8,5.39621546]
[1736158778142,2.09904171,3640.9,3640.8,5.76631546]
[1736158778339,1.14991314,3641.4,3641.2,2.74629]
[1736158778543,1.14991314,3641.4,3641.3,35.0]
[1736158778948,1.14991314,3641.4,3641.3,40.46384592]
[1736158780284,2.87416846,3641.9,3641.3,40.46384592]
[1736158780285,1.14991314,3641.9,3641.3,40.46384592]
[1736158780650,1.14991314,3641.9,3641.3,37.74627]
[1736158780848,1.14991314,3641.9,3641.3,2.74627]
[1736158781502,1.14991314,3641.9,3641.0,2.74642]
[1736158781503,2.09809692,3641.9,3641.0,2.74642]
[1736158781997,2.09809692,3641.9,3641.1,35.0]
[1736158783414,2.09809692,3641.9,3641.1,37.7464]
[1736158783550,2.09809692,3641.9,3641.1,35.0]
[1736158783751,2.09809692,3641.9,3641.6,0.3701]
[1736158784001,2.09809692,3641.9,3641.6,3.11611]
[1736158784815,1.14991314,3641.9,3641.6,0.3701]
[1736158784971,1.95841314,3642.3,3641.6,0.3701]
[1736158785290,1.95841314,3642.3,3641.7,2.74595]
[1736158785593,1.95841314,3642.3,3641.6,3.11608]
[1736158785927,0.8085,3642.3,3641.6,3.11608]
[1736158786099,0.8085,3642.3,3641.6,3.10064482]
[1736158786393,0.8085,3642.3,3641.6,0.35466482]
[1736158786749,0.8085,3642.3,3641.6,0.92969585]
[1736158787192,0.8085,3642.3,3641.6,3.67572585]
[1736158787890,0.8085,3642.3,3641.7,35.0]
[1736158790297,0.7536,3642.0,3641.0,0.3547]
[1736158791017,0.7536,3642.0,3641.1,35.0]
[1736158791222,0.7536,3642.0,3641.1,37.74641]
[1736158792911,0.7536,3642.0,3641.1,35.0]
[1736158793139,0.7536,3642.0,3641.3,2.74622]
[1736158793815,0.7536,3642.0,3641.2,2.74631]
[1736158794224,0.7536,3642.0,3641.1,35.0]
[1736158794225,0.7536,3642.0,3641.3,2.74627]
[1736158795284,0.7536,3642.0,3641.1,35.0]
[1736158795618,1.103522,3642.0,3641.1,37.7464]
[1736158795811,0.7536,3642.0,3641.1,37.7464]
[1736158798120,0.7536,3642.0,3641.2,2.74634]
[1736158799109,0.7536,3642.0,3641.3,2.74625]
[1736158799309,0.7536,3642.0,3641.4,2.64957546]
[1736158799485,0.7536,3642.0,3641.6,2.74603]
[1736158800123,1.14991314,3642.5,3641.6,2.74603]
[1736158800281,0.8187,3642.4,3641.8,2.74584]
[1736158800648,0.8187,3642.4,3641.6,2.74601]
[1736158800944,0.8187,3642.4,3641.9,35.0]
[1736158802547,1.30149331,3642.4,3641.9,35.0]
[1736158802681,0.48279331,3642.4,3641.9,35.0]
[1736158802888,2.74552,3642.3,3641.9,35.0]
[1736158803243,0.7921,3642.2,3641.3,2.74623]
[1736158803585,0.7921,3642.2,3641.4,35.0]
[1736158804342,0.7702,3642.1,3641.4,35.0]
[1736158805218,1.23677531,3642.1,3641.4,35.0]
[1736158807102,1.23677531,3642.1,3641.4,37.74618]
[1736158807299,0.7702,3642.1,3641.5,2.77351849]
[1736158807500,0.7702,3642.1,3641.5,0.0274581]
[1736158807717,0.7702,3642.1,3641.6,2.74601]
[1736158810846,0.7702,3642.1,3641.7,35.0]
[1736158813673,0.7992,3642.5,3641.7,37.71757592]
[1736158814126,0.7992,3642.5,3642.0,2.74572]
[1736158814720,0.7992,3642.5,3642.1,35.0]
[1736158815142,0.7992,3642.5,3642.1,37.74566]
[1736158816285,0.7992,3642.5,3642.1,35.0]
[1736158816482,0.7992,3642.5,3642.3,2.74551]
[1736158816976,0.7992,3642.5,3642.1,37.7456]
[1736158817179,0.7992,3642.5,3642.2,2.74555]
[1736158817327,0.7992,3642.5,3642.1,35.0]
[1736158818849,0.7992,3642.5,3642.1,37.74565]
[1736158819036,1.14991314,3642.7,3642.2,3.07227592]
[1736158819359,0.8093,3642.6,3642.4,2.74539]
[1736158819863,0.8093,3642.6,3642.1,35.0]
[1736158820433,0.8093,3642.6,3641.7,2.7459]
[1736158820778,0.759,3642.5,3641.7,2.7459]
[1736158821072,0.759,3642.5,3641.8,35.0]
[1736158821665,4.28157922,3642.5,3641.8,35.0]
[1736158821831,0.8048,3642.4,3641.8,35.0]
[1736158822453,0.8048,3642.4,3641.8,37.74586]
[1736158822767,0.8048,3642.2,3641.8,35.0]
[1736158823651,0.94906643,3642.1,3641.8,35.0]
[1736158825082,0.94906643,3642.1,3641.8,37.74586]
[1736158826283,0.8048,3642.2,3641.8,37.74586]
[1736158827378,0.8048,3642.2,3641.8,35.0]
[1736158828649,0.94997406,3642.1,3641.8,35.0]
[1736158830185,0.8236,3642.0,3641.8,35.0]
[1736158830380,1.77357406,3642.0,3641.8,35.0]
[1736158831666,2.374996,3641.9,3641.8,35.0]
[1736158832199,0.7953,3641.8,3640.8,1.15200518]
[1736158832488,0.7953,3641.4,3640.8,1.15200518]
[1736158832781,0.7953,3641.2,3640.9,35.0]
[1736158834295,3.52337307,3641.1,3640.9,35.0]
[1736158834655,0.04991055,3641.0,3640.9,35.0]
[1736158835305,0.84331055,3641.0,3640.9,35.0]
[1736158835802,0.7934,3640.9,3639.9,1.15200518]
[1736158836114,0.7934,3640.6,3639.9,1.15200518]
[1736158836270,0.7934,3640.6,3640.2,35.0]
[1736158836471,0.04920163,3640.5,3640.2,35.0]
[1736158840124,0.7933,3640.4,3640.2,35.0]
[1736158840478,0.0490804,3640.3,3640.2,35.0]
[1736158841410,0.7933,3640.4,3640.2,35.0]
[1736158841615,0.0490804,3640.3,3640.2,35.0]
[1736158841925,0.7933,3640.4,3640.2,35.0]
[1736158842293,0.0490804,3640.3,3640.2,35.0]
[1736158842510,0.7933,3640.4,3640.2,35.0]
[1736158842701,0.0490804,3640.3,3640.2,35.0]
[1736158842899,0.7933,3640.4,3640.2,35.0]
[1736158843145,0.0490804,3640.3,3640.2,35.0]
[1736158843342,0.7933,3640.4,3640.2,35.0]
[1736158854646,0.115,3640.5,3640.2,35.0]
[1736158855406,0.115,3640.9,3640.4,2.74693]
[1736158855619,0.115,3641.0,3640.4,2.74693]
[1736158856509,0.115,3641.0,3640.2,40.81937592]
[1736158856943,0.04807201,3640.9,3640.2,40.81937592]
[1736158857142,0.115,3641.0,3640.2,40.81937592]
[1736158857143,0.115,3641.0,3640.2,38.1018]
[1736158858751,0.04807201,3640.9,3640.2,38.1018]
[1736158859835,0.8186,3640.8,3640.2,38.1018]
[1736158863471,0.8186,3640.8,3640.3,2.74702]